bitfinex-derivatives/quotes_ETHF0:USTF0_20250917
["timestamp","ask_amount","ask_price","bid_price","bid_amount"]
[1758111412301,0.6835,4490.9,4490.8,3.2078]
[1758111412502,0.6835,4490.9,4490.8,3.4318]
[1758111415502,0.6835,4490.9,4490.8,3.6474]
[1758111420206,0.6835,4490.9,4490.8,0.4396]
[1758111420602,0.6835,4490.9,4490.8,0.645]
[1758111420802,0.6835,4490.9,4490.8,0.7974]
[1758111421105,0.6835,4490.9,4490.8,0.645]
[1758111421704,0.6835,4490.9,4490.8,0.7974]
[1758111422800,0.6835,4490.9,4490.8,0.645]
[1758111424705,0.6835,4490.9,4490.8,0.4396]
[1758111425110,0.6835,4490.9,4490.8,0.645]
[1758111425707,0.4876,4490.9,4490.8,0.7974]
[1758111426411,3.917,4491.4,4491.3,0.421]
[1758111426608,0.836,4491.0,4490.9,0.2156]
[1758111426810,0.836,4491.0,4490.9,0.3856]
[1758111428807,0.836,4491.0,4490.9,0.2156]
[1758111429013,0.5335,4491.0,4490.9,0.224]
[1758111429316,0.6462,4490.5,4490.4,0.4144]
[1758111429509,0.6462,4490.5,4490.4,0.6384]
[1758111430005,0.6462,4490.5,4490.4,0.7907]
[1758111430713,0.1268,4491.0,4490.5,0.1523]
[1758111430913,0.3402,4491.0,4490.9,0.4144]
[1758111431411,0.6506,4491.0,4490.9,0.4144]
[1758111431609,0.8553,4491.0,4490.9,0.4144]
[1758111432713,0.8553,4491.0,4490.9,0.2047]
[1758111437721,0.4372,4491.0,4490.9,0.5667]
[1758111438017,0.3104,4491.0,4490.9,0.5667]
[1758111444220,0.6462,4491.0,4490.9,0.5667]
[1758111445721,0.4328,4491.0,4490.9,0.5667]
[1758111447121,0.6462,4491.0,4490.9,0.5667]
[1758111447925,0.3104,4491.0,4490.9,0.5667]
[1758111448216,0.6462,4491.0,4490.9,0.5667]
[1758111448419,0.8509,4491.0,4490.9,0.2047]
[1758111454429,0.8509,4491.0,4490.7,0.2462]
[1758111464142,0.8509,4491.0,4490.9,0.2159]
[1758111464736,0.6462,4491.0,4490.9,3.7793]
[1758111465141,0.6462,4491.0,4490.9,3.6269]
[1758111465336,0.8581,4491.0,4490.9,3.6269]
[1758111465538,0.4328,4491.0,4490.9,3.7793]
[1758111465742,0.6314,4491.0,4490.9,3.6269]
[1758111467742,0.8433,4491.0,4490.9,3.6269]
[1758111472451,0.8433,4491.0,4490.9,3.4318]
[1758111472853,1.6642,4491.0,4490.9,3.4318]
[1758111474149,1.6642,4491.0,4490.9,3.6477]
[1758111479658,1.6642,4491.0,4490.9,3.4318]
[1758111480156,1.6642,4491.0,4490.9,3.2078]
[1758111480453,1.88687,4491.0,4490.9,0.224]
[1758111480654,1.88687,4491.0,4490.7,0.0222]
[1758111480954,1.88687,4491.0,4490.7,0.2462]
[1758111481156,1.88687,4491.0,4490.7,0.0222]
[1758111481757,1.6642,4491.0,4490.7,0.0222]
[1758111483055,1.6642,4491.0,4490.4,3.4318]
[1758111483056,0.8465,4490.5,4490.4,3.4318]
[1758111483250,0.2049,4489.9,4489.8,3.2078]
[1758111483456,0.7265,4489.9,4489.8,3.4318]
[1758111485156,0.7265,4489.9,4489.8,3.6311]
[1758111485361,0.7265,4489.9,4489.8,3.8466]
[1758111486461,0.7265,4489.9,4489.8,3.6311]
[1758111489665,0.7265,4489.9,4489.8,3.4318]
[1758111489965,0.7265,4489.9,4489.8,3.2078]
[1758111490367,4.7265,4489.9,4489.8,3.2078]
[1758111490662,5.4607,4489.9,4489.5,0.224]
[1758111490863,1.4607,4489.9,4489.5,0.224]
[1758111491164,4.6685,4489.9,4489.5,0.224]
[1758111492656,0.7444,4489.2,4489.1,0.02227643]
[1758111493056,4.7444,4489.2,4489.1,0.02227643]
[1758111493762,0.7444,4488.7,4488.6,3.2078]
[1758111496870,0.1214,4488.5,4488.4,0.2064]
[1758111497072,0.542,4488.5,4488.4,0.2064]
[1758111497571,0.8658,4488.5,4488.4,0.2064]
[1758111500573,0.8658,4488.5,4488.4,0.6116]
[1758111500780,0.4452,4488.5,4488.4,0.6116]
[1758111501078,0.6515,4488.5,4488.4,0.4148]
[1758111501279,0.8658,4488.5,4488.4,0.4148]
[1758111502881,0.8658,4488.5,4488.4,0.2064]
[1758111503182,0.4206,4488.2,4488.1,3.4318]
[1758111503372,0.7444,4488.2,4488.1,3.2078]
[1758111503569,0.7444,4487.7,4487.6,0.2064]
[1758111506270,0.7444,4487.7,4487.2,0.224]
[1758111506478,0.8658,4487.5,4487.4,0.2064]
[1758111510284,0.3238,4487.4,4487.1,3.4318]
[1758111510484,0.7444,4487.2,4487.1,3.6382]
[1758111512185,0.7444,4487.2,4487.1,3.4142]
[1758111514176,0.7444,4487.2,4487.1,3.2078]
[1758111514784,0.7444,4487.2,4487.1,3.4142]
[1758111515591,0.7444,4487.2,4487.1,3.6226]
[1758111515789,0.7444,4487.2,4487.1,3.8194]
[1758111518390,0.5301,4487.2,4487.1,3.8194]
[1758111518591,3.2078,4487.9,4487.3,0.4212]
[1758111518792,3.2078,4487.9,4487.2,0.1969]
[1758111518793,0.3208,4487.8,4487.7,0.6181]
[1758111520703,0.5321,4487.8,4487.7,0.6181]
[1758111522904,0.3208,4487.8,4487.7,0.6181]
[1758111523100,0.5321,4487.8,4487.7,0.4212]
[1758111523305,0.737,4487.8,4487.7,0.4212]
[1758111523505,0.737,4487.8,4487.7,0.2099]
[1758111525402,0.3259,4487.5,4487.4,0.2099]
[1758111525706,0.5372,4487.5,4487.4,0.2099]
[1758111526105,0.858,4487.5,4487.4,0.2099]
[1758111526909,0.6531,4487.5,4487.4,0.6181]
[1758111532514,0.6531,4487.5,4487.4,0.4212]
[1758111532712,0.858,4487.5,4487.4,0.4212]
[1758111533212,0.858,4487.5,4487.4,0.6181]
[1758111533616,0.4418,4487.5,4487.4,0.6181]
[1758111533816,0.3208,4487.5,4487.4,0.6181]
[1758111534509,0.3208,4487.8,4487.5,0.1969]
[1758111534709,0.3208,4487.8,4487.7,0.6181]
[1758111535109,0.3208,4487.8,4487.7,3.8259]
[1758111535310,0.3208,4487.9,4487.8,0.6181]
[1758111536311,0.5321,4487.9,4487.8,0.6181]
[1758111538116,0.5321,4487.9,4487.8,0.4212]
[1758111538818,0.5321,4487.9,4487.8,0.6174]
[1758111540610,0.3208,4487.9,4487.8,0.6174]
[1758111542222,0.3156,4488.1,4488.0,0.4034]
[1758111542412,1.1492,4488.2,4488.1,0.5996]
[1758111542712,0.3156,4488.7,4488.1,0.5996]
[1758111542917,0.3156,4488.7,4488.6,0.5996]
[1758111543120,0.5218,4488.7,4488.6,0.8236]
[1758111543618,0.7274,4488.7,4488.6,0.6274]
[1758111543820,0.7274,4488.7,4488.6,0.224]
[1758111544622,0.7274,4488.7,4488.6,0.4311]
[1758111545917,0.7274,4488.7,4488.6,0.224]
[1758111546717,0.3255,4488.0,4487.7,3.4186]
[1758111546918,0.7254,4487.8,4487.7,3.4186]
[1758111547119,0.7254,4487.8,4487.7,3.6426]
[1758111547923,0.7254,4487.8,4487.7,3.8574]
[1758111548925,0.7254,4487.8,4487.7,3.4318]
[1758111549126,0.7254,4487.8,4487.7,3.6426]
[1758111551035,0.7254,4487.8,4487.7,3.8574]
[1758111551341,0.5238,4487.8,4487.7,4.0542]
[1758111553640,0.5238,4487.8,4487.7,3.8574]
[1758111553641,0.7254,4487.8,4487.7,3.8574]
[1758111554038,0.5238,4487.8,4487.7,4.0542]
[1758111554343,0.3187,4487.8,4487.7,4.0542]
[1758111556631,0.5238,4487.8,4487.7,4.0542]
[1758111562842,0.3187,4488.0,4487.9,0.4256]
[1758111563043,0.5238,4488.4,4488.3,0.6224]
[1758111563343,0.5238,4488.4,4488.3,0.8464]
[1758111564542,0.5238,4488.4,4488.3,0.6496]
[1758111568439,1.1899,4488.6,4488.3,0.6496]
[1758111568742,0.8712,4488.6,4488.5,0.6828]
[1758111569338,0.3187,4489.2,4488.6,0.1968]
[1758111569540,0.3187,4489.2,4489.1,3.8302]
[1758111569745,0.3187,4489.2,4489.1,4.0542]
[1758111570346,0.3187,4489.4,4489.3,0.4256]
[1758111570547,0.3187,4489.4,4489.3,0.6224]
[1758111571841,0.7254,4489.4,4489.3,0.4256]
[1758111572048,0.7254,4489.4,4489.3,0.6224]
[1758111573752,0.7254,4489.4,4489.3,0.4256]
[1758111579353,0.5238,4489.4,4489.3,0.6217]
[1758111580654,0.5238,4489.4,4489.3,0.4256]
[1758111581051,0.7304,4489.4,4489.3,0.2108]
[1758111582052,0.7304,4489.4,4489.3,0.4348]
[1758111585459,0.7304,4489.4,4489.3,0.6389]
[1758111586060,0.5238,4489.4,4489.3,0.6389]
[1758111586260,0.7304,4489.4,4489.3,0.6389]
[1758111589062,0.3187,4489.4,4489.3,0.835]
[1758111589263,0.8709,4489.8,4489.6,0.6096]
[1758111589264,0.509,4489.7,4489.6,0.6096]
[1758111589464,0.509,4489.7,4489.6,4.0414]
[1758111590360,0.3118,4489.7,4489.6,4.0414]
[1758111593967,0.8709,4489.8,4489.7,0.1961]
[1758111594174,0.8709,4489.8,4489.7,0.6096]
[1758111594466,0.3118,4489.9,4489.8,0.6096]
[1758111594671,0.3118,4490.4,4489.8,0.6375]
[1758111594860,0.3118,4490.3,4489.9,0.1961]
[1758111595065,0.3118,4490.3,4489.6,3.2078]
[1758111595066,0.509,4490.3,4490.2,0.6096]
[1758111595268,0.3118,4490.3,4490.2,0.8336]
[1758111595870,0.509,4490.3,4490.2,0.8336]
[1758111598077,0.509,4490.3,4490.2,0.8336]
[1758111598675,0.509,4490.3,4490.2,0.6375]
[1758111599068,0.509,4490.3,4490.2,0.8331]
[1758111599069,0.7136,4490.3,4490.2,0.8331]
[1758111599464,0.3118,4490.3,4490.2,0.8331]
[1758111599665,0.1239,4490.5,4490.2,0.8331]
[1758111599666,0.3049,4490.5,4490.3,0.1956]
[1758111599870,0.3049,4490.5,4490.4,0.6124]
[1758111600379,0.6355,4490.5,4490.4,0.6124]
[1758111601776,0.6355,4490.5,4490.4,0.4168]
[1758111601976,0.8401,4490.5,4490.4,0.4168]
[1758111602174,0.4278,4490.5,4490.4,0.4168]
[1758111602380,0.3049,4490.5,4490.4,0.6124]
[1758111605573,0.8707,4490.6,4490.2,3.454]
[1758111605574,0.8707,4490.6,4490.5,0.6124]
[1758111605879,0.4288,4491.0,4490.9,0.6124]
[1758111606070,0.539,4491.5,4491.4,0.4168]
[1758111606276,0.539,4491.5,4491.4,0.9636]
[1758111608179,0.8532,4491.5,4491.4,0.9636]
[1758111612277,0.7265,4491.5,4491.4,0.9636]
[1758111612480,0.5274,4491.9,4491.8,0.4028]
[1758111612683,0.5274,4491.9,4491.8,0.9217]
[1758111613484,0.743,4491.9,4491.8,0.9217]
[1758111616087,0.743,4491.9,4491.8,0.4265]
[1758111616488,0.743,4491.9,4491.8,0.7214]
[1758111616689,0.743,4491.9,4491.8,0.4265]
[1758111616888,0.743,4491.9,4491.8,0.224]
[1758111619890,0.743,4491.9,4491.8,0.4265]
[1758111620091,0.743,4491.9,4491.8,0.9217]
[1758111625394,0.8656,4491.5,4491.4,3.7052]
[1758111625690,0.8656,4491.5,4491.4,4.1295]
[1758111626192,0.743,4491.5,4491.4,4.1295]
[1758111626790,0.5274,4491.5,4491.4,4.1295]
[1758111628592,0.743,4491.5,4491.4,4.1295]
[1758111628788,0.3142,4491.5,4491.4,4.1295]
[1758111628988,0.3142,4491.9,4491.8,0.4028]
[1758111629188,0.1229,4492.5,4491.9,0.2949]
[1758111629394,0.5517,4492.5,4492.4,0.4974]
[1758111629592,0.2132,4492.5,4492.4,0.9217]
[1758111629791,0.3142,4492.7,4492.5,0.2949]
[1758111629993,0.5274,4492.7,4492.6,0.6977]
[1758111632291,0.743,4492.7,4492.6,0.6977]
[1758111632491,0.1226,4492.5,4492.4,0.2462]
[1758111632794,0.8656,4492.5,4492.4,0.4487]
[1758111632986,0.8656,4492.5,4492.4,0.9439]
[1758111633192,0.5274,4492.5,4492.4,0.9439]
[1758111634094,0.5274,4492.5,4492.4,0.9217]
[1758111637200,0.8703,4492.5,4492.4,0.224]
[1758111637403,0.8703,4492.5,4492.4,0.7266]
[1758111637604,0.8703,4492.5,4492.4,0.9371]
[1758111639700,0.743,4492.5,4492.4,0.9371]
[1758111640002,0.5231,4492.5,4492.4,0.9371]
[1758111641402,0.846,4492.5,4492.4,0.4299]
[1758111641706,0.846,4492.5,4492.4,0.9371]
[1758111642504,0.7187,4492.5,4492.4,0.9371]
[1758111643397,0.5231,4492.5,4492.4,0.9371]
[1758111643602,3.3304,4493.5,4492.4,0.9371]
[1758111643912,0.5274,4493.0,4492.9,0.2059]
[1758111644209,0.5274,4493.0,4492.9,0.7266]
[1758111644405,0.8468,4493.0,4492.9,0.9371]
[1758111644805,0.8468,4493.0,4492.9,0.6404]
[1758111645005,0.8468,4493.0,4492.9,0.4299]
[1758111645912,0.8468,4493.0,4492.9,0.7266]
[1758111646113,0.8468,4493.0,4492.9,0.224]
[1758111646611,0.8468,4493.0,4492.9,0.4299]
[1758111646804,0.8468,4493.0,4492.9,0.9371]
[1758111647008,0.5283,4493.0,4492.9,0.9371]
[1758111647805,0.3194,4493.0,4492.9,0.9371]
[1758111648209,0.5283,4493.0,4492.9,0.9371]
[1758111650713,0.5283,4493.4,4493.3,0.4164]
[1758111650912,0.5283,4493.4,4493.3,0.9371]
[1758111651213,0.7239,4493.4,4493.3,0.9371]
[1758111653611,0.7239,4493.4,4493.3,4.1449]
[1758111653817,0.5283,4493.4,4493.3,4.1449]
[1758111654311,0.3194,4493.4,4493.3,4.1449]
[1758111654517,0.7239,4493.9,4493.8,0.5072]
[1758111654815,0.7239,4493.9,4493.8,0.9371]
[1758111658512,0.7239,4493.9,4493.8,0.224]
[1758111660320,0.8236,4493.5,4493.4,0.1968]
[1758111660520,0.8236,4493.5,4493.4,0.4208]
[1758111661117,0.8236,4493.5,4493.4,0.7224]
[1758111661823,0.8236,4493.5,4493.3,3.2078]
[1758111661824,0.2986,4493.4,4493.3,3.2078]
[1758111662010,0.7059,4493.4,4493.3,0.224]
[1758111664817,0.92845,4493.4,4493.1,0.0222]
[1758111665222,0.4073,4493.2,4493.1,0.0222]
[1758111665426,0.7059,4493.2,4493.1,0.0222]
[1758111666820,0.7059,4493.2,4492.8,0.224]
[1758111667017,0.7059,4493.2,4492.9,0.3131]
[1758111667322,0.7334,4492.9,4492.8,0.224]
[1758111667517,0.7334,4492.9,4492.8,0.4201]
[1758111668024,0.7334,4492.9,4492.8,0.224]
[1758111668724,0.7334,4492.9,4492.8,0.4201]
[1758111669022,0.7334,4492.9,4492.8,0.7332]
[1758111670625,0.7334,4492.9,4492.8,0.4201]
[1758111671021,0.7334,4492.9,4492.8,0.7332]
[1758111671220,0.7334,4492.9,4492.8,0.4201]
[1758111672127,0.7334,4492.9,4492.8,0.7332]
[1758111672327,0.7334,4492.9,4492.8,0.9414]
[1758111678829,0.7334,4492.9,4492.8,0.4201]
[1758111679534,0.7334,4492.9,4492.6,0.0222]
[1758111679727,0.95598,4492.9,4492.6,0.0222]
[1758111679933,0.7334,4492.9,4492.6,0.0222]
[1758111680129,3.6185,4492.7,4492.6,0.0222]
[1758111680428,3.6185,4492.7,4491.9,0.224]
[1758111680429,3.9412,4492.7,4491.9,0.224]
[1758111680732,0.8544,4492.0,4491.9,0.4201]
[1758111682132,0.8544,4492.0,4491.9,0.7332]
[1758111683836,0.8544,4492.0,4491.9,0.224]
[1758111684432,0.8544,4492.0,4491.7,0.0222]
[1758111685929,0.8544,4492.0,4491.8,0.3131]
[1758111686133,0.8544,4492.0,4491.9,0.7174]
[1758111686134,0.522,4492.0,4491.9,0.7174]
[1758111687238,3.2078,4492.2,4491.9,0.7174]
[1758111687438,0.3227,4492.1,4492.0,0.3131]
[1758111687834,0.522,4492.1,4492.0,0.7174]
[1758111692538,3.2078,4492.2,4492.0,0.5312]
[1758111692838,0.5317,4492.5,4492.4,0.3131]
[1758111693045,0.5317,4492.5,4492.1,0.3131]
[1758111693238,0.5317,4492.5,4492.4,0.4201]
[1758111693434,0.8544,4492.5,4492.4,0.9414]
[1758111693740,0.7334,4492.5,4492.4,0.9414]
[1758111693946,0.3227,4492.5,4492.4,0.9414]
[1758111694145,0.522,4492.5,4492.4,0.9414]
[1758111697845,0.304,4492.8,4492.5,0.1226]
[1758111698054,0.5124,4492.8,4492.7,0.6948]
[1758111698254,0.7171,4492.8,4492.7,0.6948]
[1758111699753,0.7171,4492.8,4492.7,0.3953]
[1758111700657,0.7171,4492.8,4492.7,0.1995]
[1758111704260,0.7171,4492.8,4492.5,0.0222]
[1758111704656,0.7171,4492.8,4492.5,0.3217]
[1758111704960,0.7171,4492.8,4492.5,0.0222]
[1758111705857,0.7171,4492.8,4492.7,0.1995]
[1758111706061,0.7171,4492.8,4492.7,0.6948]
[1758111706360,0.304,4492.8,4492.7,0.6948]
[1758111706562,3.5118,4493.0,4492.9,0.3953]
[1758111706763,3.5118,4493.0,4492.9,0.6948]
[1758111707363,3.7202,4493.0,4492.9,0.6948]
[1758111710260,3.9249,4493.0,4492.9,0.6948]
[1758111710864,0.7171,4493.0,4492.9,0.6948]
[1758111711761,0.8373,4493.0,4492.9,0.6948]
[1758111712059,0.8373,4493.0,4492.9,0.3953]
[1758111712759,0.8373,4493.0,4492.5,0.0222]
[1758111713465,1.05988,4493.0,4492.5,0.0222]
[1758111714869,0.8373,4493.0,4492.5,0.0222]
[1758111723279,0.8373,4493.0,4492.3,0.224]
[1758111723675,0.8373,4493.0,4492.4,0.3034]
[1758111725677,0.8373,4493.0,4492.9,0.2114]
[1758111725678,0.5333,4493.0,4492.9,0.2114]
[1758111726275,0.8315,4493.0,4492.9,0.2114]
[1758111727080,0.8315,4493.0,4492.7,0.3256]
[1758111727781,0.8315,4493.0,4492.7,0.0222]
[1758111767813,3.2078,4492.9,4491.9,5.20270636]
[1758111768019,0.8163,4492.0,4491.9,3.2078]
[1758111768218,0.8163,4492.0,4491.9,3.4318]
[1758111772524,0.8163,4492.0,4491.9,0.224]
[1758111774618,0.1207,4491.5,4491.4,0.2145]
[1758111774817,0.8163,4491.5,4491.4,0.4385]
[1758111776317,0.8163,4491.5,4491.4,0.7321]
[1758111780221,0.8163,4491.5,4491.4,0.6536]
[1758111780421,0.8163,4491.5,4491.4,0.224]
[1758111781431,0.5258,4491.0,4490.9,0.5068]
[1758111781725,0.5258,4491.0,4490.9,0.7308]
[1758111781726,0.8365,4491.0,4490.9,0.7308]
[1758111781920,0.8365,4491.0,4490.6,0.2936]
[1758111782124,0.8365,4491.0,4490.7,0.224]
[1758111782526,3.9212,4490.8,4490.7,0.224]
[1758111783025,0.5258,4490.5,4490.4,0.2132]
[1758111783230,0.8365,4490.5,4490.0,0.2936]
[1758111783432,0.8365,4490.0,4489.9,0.4372]
[1758111783732,0.8365,4490.0,4489.9,0.224]
[1758111784025,0.5258,4490.0,4489.5,32.5816]
[1758111784334,0.2057,4488.9,4488.8,3.9297]
[1758111784636,0.7134,4488.9,4488.8,4.1537]
[1758111785829,0.5164,4488.9,4488.8,4.1537]
[1758111786328,0.1231,4489.5,4488.8,4.1537]
[1758111786531,0.7134,4489.4,4489.3,0.2132]
[1758111791432,0.3103,4489.7,4489.3,0.4278]
[1758111791731,0.3103,4489.7,4489.6,0.7377]
[1758111791935,0.5188,4489.7,4489.6,0.7377]
[1758111795036,0.7334,4489.7,4489.6,0.7377]
[1758111799939,0.3103,4489.7,4489.6,0.7377]
[1758111800236,0.5188,4489.7,4489.6,0.7377]
[1758111803739,0.7334,4489.7,4489.6,0.7377]
[1758111810247,0.4231,4489.7,4489.6,0.7377]
[1758111810750,0.7334,4489.7,4489.6,0.7377]
[1758111813846,0.3103,4490.2,4489.6,0.4288]
[1758111814050,0.3103,4490.2,4490.0,0.8557]
[1758111814348,0.3103,4490.2,4490.1,0.7377]
[1758111814549,0.5188,4490.2,4490.1,0.7377]
[1758111814750,3.2078,4490.8,4490.1,0.7377]
[1758111814947,1.2741928,4490.7,4490.6,0.5231]
[1758111815949,1.2741928,4490.7,4490.6,0.7377]
[1758111816952,0.5188,4490.7,4490.6,0.7377]
[1758111817452,0.3103,4490.7,4490.6,0.7377]
[1758111819145,0.5172,4490.7,4490.6,0.7377]
[1758111819451,0.7305,4490.7,4490.6,0.7377]
[1758111820051,0.3103,4490.7,4490.6,0.7377]
[1758111821754,0.5172,4490.7,4490.6,0.7377]
[1758111822542,3.2078,4491.4,4490.7,0.3146]
[1758111822743,0.7393,4491.3,4491.2,0.3942]
[1758111822945,0.7393,4491.3,4491.2,0.7088]
[1758111825853,0.526,4491.3,4491.2,0.7088]
[1758111826453,0.7393,4491.3,4491.2,0.7088]
[1758111826955,3.2078,4491.9,4491.2,0.7088]
[1758111827254,0.526,4491.8,4491.7,0.7088]
[1758111828158,0.7393,4491.8,4491.7,0.7088]
[1758111828951,3.2078,4491.9,4491.7,0.3942]
[1758111829148,3.2078,4491.9,4491.8,0.3146]
[1758111829351,3.2078,4491.9,4491.8,0.7088]
[1758111829854,0.526,4491.9,4491.8,0.7088]
[1758111830049,0.7393,4491.9,4491.8,0.7088]
[1758111835149,0.526,4491.9,4491.8,0.7088]
[1758111835348,0.3191,4492.4,4491.9,0.3146]
[1758111835550,0.7393,4492.4,4492.3,0.7088]
[1758111836756,0.7393,4492.4,4491.6,0.3235]
[1758111838752,0.7393,4492.4,4491.7,0.0222]
[1758111839055,0.7393,4492.4,4491.8,0.3235]
[1758111846159,0.2997,4492.9,4492.8,0.4167]
[1758111846366,0.5075,4493.4,4493.3,0.206]
[1758111846561,0.7038,4493.4,4493.3,0.7402]
[1758111849666,0.7131,4493.4,4493.0,0.2994]
[1758111850170,0.3042,4493.3,4492.8,3.2078]
[1758111850463,0.723,4493.3,4493.2,0.5142]
[1758111850962,0.723,4493.3,4493.2,0.7171]
[1758111851162,0.5174,4493.3,4493.2,0.7171]
[1758111851566,0.1277,4494.0,4493.2,0.7171]
[1758111851765,0.5174,4493.5,4493.4,3.9249]
[1758111853667,0.5465,4494.0,4493.9,0.7171]
[1758111854258,0.8507,4494.0,4493.9,3.9249]
[1758111857670,0.723,4494.0,4493.9,3.9249]
[1758111861069,0.723,4494.0,4493.9,4.1489]
[1758111867270,0.723,4494.6,4494.5,0.4177]
[1758111867471,0.723,4494.6,4494.5,0.9411]
[1758111868473,0.723,4494.6,4494.2,0.2994]
[1758111868678,0.723,4494.3,4494.2,0.5142]
[1758111868866,0.723,4494.3,4494.2,0.7382]
[1758111869475,0.723,4494.3,4494.2,0.9411]
[1758111871572,0.125,4495.0,4494.3,0.2994]
[1758111871779,0.848,4495.0,4494.9,0.5142]
[1758111872280,0.848,4495.0,4494.9,0.2148]
[1758111873974,0.723,4495.0,4494.9,0.7171]
[1758111875473,0.8428,4495.0,4494.9,0.7171]
[1758111877282,0.8428,4495.0,4494.9,0.2148]
[1758111877483,0.8428,4495.0,4494.6,0.5154]
[1758111877679,0.407,4494.7,4494.6,0.7202]
[1758111877977,0.2996,4494.7,4494.6,0.6973]
[1758111878183,0.4962,4494.9,4494.8,0.4049]
[1758111878382,0.4962,4494.9,4494.8,0.6973]
[1758111879283,0.7066,4494.9,4494.8,0.6973]
[1758111883889,0.2996,4494.9,4494.8,0.6973]
[1758111885088,0.4962,4494.9,4494.8,0.6973]
[1758111885991,0.2996,4494.9,4494.8,0.6973]
[1758111886490,0.407,4494.9,4494.2,0.2924]
[1758111886691,0.7066,4494.4,4494.3,0.6279]
[1758111887294,0.7066,4494.4,4494.3,0.9203]
[1758111889888,0.4962,4494.4,4494.3,0.9203]
[1758111893900,0.5283,4495.0,4494.9,0.2048]
[1758111894200,0.5283,4495.0,4494.9,0.4972]
[1758111894400,0.8279,4495.0,4494.9,0.4972]
[1758111899902,0.7066,4495.0,4494.9,0.6973]
[1758111900307,0.323,4495.3,4495.2,0.727]
[1758111900805,0.7452,4495.9,4495.8,0.727]
[1758111901005,0.7452,4495.9,4495.8,0.4147]
[1758111901204,0.7452,4495.9,4495.5,0.223]
[1758111901607,0.4222,4495.6,4495.5,0.437]
[1758111901899,0.7452,4495.6,4495.5,0.437]
[1758111902301,0.7452,4495.6,4495.5,0.7493]
[1758111902709,0.7452,4495.6,4495.5,0.95]
[1758111904614,0.331,4496.0,4495.9,0.214]
[1758111904808,0.865,4496.0,4495.9,0.727]
[1758111906915,0.5319,4496.5,4496.4,0.4184]
[1758111907120,0.5319,4496.5,4496.4,0.2063]
[1758111907416,0.5319,4496.5,4496.1,0.316]
[1758111907614,0.7086,4496.2,4496.1,0.5223]
[1758111908015,2.01042557,4499.0,4498.6,0.316]
[1758111908313,2.01042557,4499.0,4498.5,0.1242]
[1758111908314,0.7086,4498.9,4498.8,0.7344]
[1758111908518,0.7086,4498.9,4498.8,1.0062021]
[1758111909015,0.7086,4498.9,4498.8,0.5018021]
[1758111909521,0.7086,4498.9,4498.8,0.23]
[1758111909818,0.7086,4498.9,4498.8,0.9644]
[1758111912314,0.7086,4498.9,4498.8,0.7344]
[1758111912514,0.7086,4498.9,4498.8,0.9634]
[1758111913718,0.4964,4498.9,4498.8,0.7344]
[1758111913915,0.4964,4498.9,4498.8,0.9634]
[1758111915115,0.2965,4499.3,4498.9,0.316]
[1758111915318,0.2965,4499.3,4499.0,0.5426]
[1758111915518,0.2965,4499.3,4499.0,4.0664]
[1758111915819,0.2965,4499.7,4499.0,4.0664]
[1758111916421,0.2965,4499.5,4499.0,4.0664]
[1758111917420,0.2965,4500.4,4499.2,0.316]
[1758111917622,0.2965,4500.4,4499.4,0.316]
[1758111917823,0.2965,4500.4,4499.6,0.316]
[1758111918016,0.7086,4500.4,4500.3,0.2063]
[1758111918221,0.7086,4500.4,4500.3,0.9134]
[1758111918624,0.7086,4500.4,4500.3,0.179]
[1758111918823,0.7086,4500.4,4500.3,0.3853]
[1758111919029,0.7086,4500.4,4500.3,0.9134]
[1758111919723,0.1999,4500.5,4500.4,0.316]
[1758111919917,0.4964,4500.5,4500.4,0.7344]
[1758111922426,0.827,4500.5,4500.4,0.4184]
[1758111922725,0.827,4500.5,4500.4,0.229]
[1758111922926,0.827,4500.5,4500.4,0.4353]
[1758111923330,0.827,4500.5,4500.4,0.2063]
[1758111923523,0.827,4500.5,4500.4,0.4353]
[1758111924027,0.1184,4500.5,4500.3,0.2063]
[1758111924224,0.827,4500.5,4500.4,0.229]
[1758111924730,0.7086,4500.3,4500.2,3.2078]
[1758111924930,0.7086,4500.3,4500.2,3.4368]
[1758111925629,0.7086,4500.3,4500.2,3.6431]
[1758111925930,0.1184,4500.0,4499.9,0.2063]
[1758111926233,0.5305,4500.0,4499.9,0.6474]
[1758111926623,0.7086,4499.9,4499.8,0.5281]
[1758111926833,0.7086,4499.9,4499.8,0.9634]
[1758111927326,0.7086,4499.9,4499.8,0.7344]
[1758111927728,0.7086,4499.9,4499.8,0.9634]
[1758111929334,0.4964,4499.9,4499.8,0.9634]
[1758111929634,0.7086,4499.9,4499.8,0.7344]
[1758111929934,0.7086,4499.9,4499.8,0.9634]
[1758111932734,0.7086,4499.9,4499.8,0.7344]
[1758111932934,0.7086,4499.9,4499.8,0.9634]
[1758111933134,0.7086,4499.9,4499.8,1.26760194]
[1758111935035,0.7086,4499.9,4499.8,0.9634]
[1758111935338,0.7086,4499.9,4499.8,1.23231548]
[1758111937037,0.7086,4499.9,4499.8,1.00331548]
[1758111937237,0.7086,4499.9,4499.8,0.91531548]
[1758111937638,0.7086,4499.9,4499.8,1.23101548]
[1758111937935,0.712,4499.9,4499.8,0.228]
[1758111938233,1.23623453,4499.9,4499.8,0.4227]